lending/lending_fUSD_20260204
["ID","MTS","AMOUNT","RATE_DAILY","PERIOD"]
[404481892,1770195040049,-200.0,0.00013362,2]
[404481893,1770195040059,-500.0,0.00013362,2]
[404481894,1770195040068,-500.0,0.00013362,2]
[404481895,1770195040077,-630.0,0.00013362,2]
[404481896,1770195040087,-422.0,0.00013362,2]
[404481897,1770195040096,-500.0,0.00013362,2]
[404481898,1770195040105,-500.0,0.00013362,2]
[404481899,1770195040115,-1287.0,0.00013362,2]
[404481900,1770195040126,-500.0,0.00013362,2]
[404481901,1770195040135,-500.0,0.00013362,2]
[404481902,1770195040144,-1112.0,0.00013362,2]
[404481903,1770195040153,-709.0,0.00013362,2]
[404481904,1770195040162,-150.0,0.00013362,2]
[404481905,1770195040171,-150.0,0.00013362,2]
[404481906,1770195040180,-692.0,0.00013362,2]
[404481907,1770195040189,-150.0,0.00013362,2]
[404481908,1770195040199,-500.0,0.00013362,2]
[404481909,1770195040208,-820.0,0.00013362,2]
[404481910,1770195040217,-550.58242297,0.00013362,2]
[404481911,1770195040227,-500.0,0.00013362,2]
[404481912,1770195040236,-500.0,0.00013362,2]
[404481913,1770195040247,-614.0,0.00013362,2]
[404481914,1770195040257,-500.0,0.00013362,2]
[404481915,1770195040266,-649.0,0.00013362,2]
[404481916,1770195040275,-754.0,0.00013362,2]
[404481917,1770195040283,-151.0,0.00013362,2]
[404481918,1770195040295,-187.790251,0.00013362,2]
[404481919,1770195040304,-159.678861,0.00013362,2]
[404481920,1770195040313,-151.0,0.00013362,2]
[404481921,1770195040323,-159.678861,0.00013362,2]
[404481922,1770195040333,-225.59353,0.00013362,2]
[404481923,1770195040342,-159.678861,0.00013362,2]
[404481924,1770195040352,-159.678861,0.00013362,2]
[404481925,1770195040361,-500.0,0.00013416,2]
[404481926,1770195040371,-500.0,0.00013416,2]
[404481927,1770195040380,-150.0,0.00013416,2]
[404481928,1770195040390,-151.0,0.00013416,2]
[404481929,1770195040399,-151.0,0.00013416,2]
[404481930,1770195040409,-159.678861,0.00013416,2]
[404481931,1770195040419,-151.0,0.00013416,2]
[404481932,1770195040428,-159.678861,0.00013416,2]
[404481933,1770195040437,-151.0,0.00013416,2]
[404481934,1770195040447,-159.678861,0.00013416,2]
[404481935,1770195040456,-159.678861,0.00013416,2]
[404481936,1770195040465,-159.678861,0.00013416,2]
[404481937,1770195040474,-159.678861,0.00013416,2]
[404481938,1770195040483,-159.678861,0.00013416,2]
[404481939,1770195040492,-159.678862,0.00013416,2]
[404481940,1770195040501,-500.0,0.00013417,2]
[404481941,1770195040510,-200.0,0.00013417,2]
[404481942,1770195040519,-500.0,0.00013417,2]
[404481943,1770195040529,-500.0,0.00013417,2]
[404481944,1770195040538,-630.0,0.00013417,2]
[404481945,1770195040547,-422.0,0.00013417,2]
[404481946,1770195040557,-200.53013078,0.00013417,2]
[404481947,1770195040566,-500.0,0.00013417,2]
[404481948,1770195040576,-1287.0,0.00013417,2]
[404481949,1770195040586,-500.0,0.00013417,2]
[404481950,1770195040595,-500.0,0.00013417,2]
[404481951,1770195040605,-1112.0,0.00013417,2]
[404481952,1770195040614,-709.0,0.00013417,2]
[404481953,1770195040623,-150.0,0.00013417,2]
[404481954,1770195040633,-200.0,0.00013417,2]
[404481955,1770195040642,-692.0,0.00013417,2]
[404481956,1770195040651,-200.0,0.00013417,2]
[404481957,1770195040661,-500.0,0.00013417,2]
[404481958,1770195040671,-820.0,0.00013417,2]
[404481959,1770195040680,-500.0,0.00013417,2]
[404481960,1770195040689,-500.0,0.00013417,2]
[404481961,1770195040698,-614.0,0.00013417,2]
[404481962,1770195040708,-500.0,0.00013417,2]
[404481963,1770195040717,-649.0,0.00013417,2]
[404481964,1770195040727,-754.0,0.00013417,2]
[404481965,1770195040736,-3240.0,0.00013425,2]
[404481966,1770195040745,-151.0,0.00013425,2]
[404481967,1770195040754,-151.0,0.0001344,2]
[404481968,1770195040764,-151.0,0.0001344,2]
[404481969,1770195040773,-63398.97925082,0.0001345,2]
[404481970,1770195040782,-151.0,0.0001345,2]
[404481971,1770195040792,-151.0,0.0001345,2]
[404481972,1770195040802,-151.0,0.0001345,2]
[404481973,1770195040811,-500.0,0.0001347,2]
[404481974,1770195040820,-260.92045455,0.0001347,2]
[404481976,1770195040829,-348.23563268,0.0001347,2]
[404481977,1770195040839,-469.09180004,0.0001347,2]
[404481978,1770195040848,-500.0,0.00013471,2]
[404481980,1770195040858,-500.0,0.00013471,2]
[404481981,1770195040867,-150.0,0.00013471,2]
[404481982,1770195040876,-500.0,0.00013471,2]
[404481983,1770195040885,-200.0,0.00013471,2]
[404481984,1770195040895,-500.0,0.00013471,2]
[404481985,1770195040905,-373.06790773,0.00013471,2]
[404481986,1770195040915,-630.0,0.00013471,2]
[404481987,1770195040924,-422.0,0.00013471,2]
[404481988,1770195040933,-500.0,0.00013471,2]
[404481989,1770195040943,-1287.0,0.00013471,2]
[404481990,1770195040952,-500.0,0.00013471,2]
[404481991,1770195040961,-500.0,0.00013471,2]
[404481992,1770195040970,-1112.0,0.00013471,2]
[404481993,1770195040981,-709.0,0.00013471,2]
[404481994,1770195040991,-297.64699965,0.00013471,2]
[404481995,1770195041000,-692.0,0.00013471,2]
[404481996,1770195041010,-500.0,0.00013471,2]
[404481997,1770195041019,-820.0,0.00013471,2]
[404481998,1770195041028,-500.0,0.00013471,2]
[404481999,1770195041212,-500.0,0.00013471,2]
[404482000,1770195041228,-614.0,0.00013471,2]
[404482001,1770195041239,-500.0,0.00013471,2]
[404482002,1770195041250,-649.0,0.00013471,2]
[404482003,1770195041259,-754.0,0.00013471,2]
[404482004,1770195041269,-151.0,0.00013472,2]
[404482005,1770195041278,-1111.17664562,0.0001348,2]
[404482006,1770195041288,-1777.882633,0.00013481,2]
[404482007,1770195041297,-176.21939488,0.00013481,2]
[404482008,1770195041306,-1000.0,0.0001351,2]
[404482009,1770195041316,-1000.0,0.0001351,2]
[404482010,1770195041325,-1000.0,0.0001351,2]
[404482011,1770195041334,-886.592,0.0001351,2]
[404482012,1770195041344,-187.38563793,0.00013525,2]
[404482013,1770195041353,-500.0,0.00013525,2]
[404482014,1770195041362,-150.0,0.00013525,2]
[404482015,1770195041371,-500.0,0.00013526,2]
[404482016,1770195041380,-200.0,0.00013526,2]
[404482017,1770195041389,-507.32886496,0.00013526,2]
[404482018,1770195041399,-630.0,0.00013526,2]
[404482019,1770195041408,-422.0,0.00013526,2]
[404482020,1770195041418,-500.0,0.00013526,2]
[404482021,1770195041428,-1287.0,0.00013526,2]
[404482022,1770195041437,-500.0,0.00013526,2]
[404482023,1770195041447,-500.0,0.00013526,2]
[404482024,1770195041455,-1112.0,0.00013526,2]
[404482025,1770195041464,-709.0,0.00013526,2]
[404482026,1770195041473,-692.0,0.00013526,2]
[404482027,1770195041482,-500.0,0.00013526,2]
[404482028,1770195041491,-820.0,0.00013526,2]
[404482029,1770195041500,-500.0,0.00013526,2]
[404482030,1770195041509,-500.0,0.00013526,2]
[404482031,1770195041518,-614.0,0.00013526,2]
[404482032,1770195041527,-500.0,0.00013526,2]
[404482033,1770195041536,-649.0,0.00013526,2]
[404482034,1770195041545,-754.0,0.00013526,2]
[404482035,1770195041554,-505.46772774,0.0001358,2]
[404482036,1770195041563,-150.0,0.0001358,2]
[404482037,1770195041572,-500.0,0.00013581,2]
[404482038,1770195041581,-200.0,0.00013581,2]
[404482039,1770195041590,-630.0,0.00013581,2]
[404482040,1770195041600,-422.0,0.00013581,2]
[404482041,1770195041609,-500.0,0.00013581,2]
[404482042,1770195041618,-1287.0,0.00013581,2]
[404482043,1770195041626,-500.0,0.00013581,2]
[404482044,1770195041635,-500.0,0.00013581,2]
[404482045,1770195041645,-1112.0,0.00013581,2]
[404482046,1770195041654,-709.0,0.00013581,2]
[404482047,1770195041663,-692.0,0.00013581,2]
[404482048,1770195041672,-500.0,0.00013581,2]
[404482049,1770195041681,-820.0,0.00013581,2]
[404482050,1770195041690,-500.0,0.00013581,2]
[404482051,1770195041699,-500.0,0.00013581,2]
[404482052,1770195041708,-500.0,0.00013581,2]
[404482053,1770195041717,-614.0,0.00013581,2]
[404482054,1770195041726,-649.0,0.00013581,2]
[404482055,1770195041735,-754.0,0.00013581,2]
[404482056,1770195041744,-187.80927689,0.00013581,2]
[404482057,1770195041753,-175.34,0.00013581,2]
[404482058,1770195041762,-1503.0,0.00013581,2]
[404482059,1770195041771,-159.0,0.00013581,2]
[404482060,1770195041779,-151.0,0.00013581,2]
[404482061,1770195041789,-1503.0,0.00013581,2]
[404482062,1770195041797,-163.3585314,0.00013581,2]
[404482063,1770195041806,-151.0,0.00013581,2]
[404482064,1770195041815,-1503.0,0.00013581,2]
[404482065,1770195041824,-151.0,0.00013581,2]
[404482066,1770195041833,-1503.0,0.00013581,2]
[404482067,1770195041842,-151.0,0.00013581,2]
[404482068,1770195041851,-1503.0,0.00013581,2]
[404482069,1770195041859,-151.0,0.00013581,2]
[404482070,1770195041868,-1503.0,0.00013581,2]
[404482071,1770195041877,-151.0,0.00013581,2]
[404482072,1770195041886,-1503.0,0.00013581,2]
[404482073,1770195041895,-1503.0,0.00013581,2]
[404482074,1770195041903,-151.0,0.00013581,2]
[404482075,1770195041912,-1503.0,0.00013581,2]
[404482076,1770195041921,-151.0,0.00013581,2]
[404482077,1770195041931,-151.0,0.00013581,2]
[404482078,1770195041940,-1503.0,0.00013581,2]
[404482079,1770195041949,-1503.0,0.00013581,2]
[404482080,1770195041958,-1503.0,0.00013581,2]
[404482081,1770195041966,-1503.0,0.00013581,2]
[404482082,1770195041975,-1503.0,0.00013581,2]
[404482083,1770195041984,-1503.0,0.00013581,2]
[404482084,1770195041993,-151.0,0.00013581,2]
[404482085,1770195042002,-1503.0,0.00013581,2]
[404482086,1770195042011,-191.58690164,0.00013581,2]
[404482087,1770195042020,-1000.0,0.00013581,2]
[404482088,1770195042029,-1000.0,0.00013581,2]
[404482089,1770195042038,-979.90774973,0.00013581,2]
[404482090,1770195042047,-500.0,0.00013581,2]
[404482091,1770195042056,-166.66,0.00013595,2]
[404482092,1770195042065,-166.66,0.00013605,2]
[404482093,1770195042075,-157.02,0.00013624,2]
[404482094,1770195042084,-250.0,0.00013635,2]
[404482095,1770195042094,-500.0,0.00013636,2]
[404482096,1770195042104,-200.0,0.00013636,2]
[404482097,1770195042114,-630.0,0.00013636,2]
[404482098,1770195042124,-422.0,0.00013636,2]
[404482099,1770195042135,-500.0,0.00013636,2]
[404482100,1770195042145,-1287.0,0.00013636,2]
[404482101,1770195042155,-500.0,0.00013636,2]
[404482102,1770195042165,-500.0,0.00013636,2]
[404482103,1770195042174,-1112.0,0.00013636,2]
[404482104,1770195042183,-709.0,0.00013636,2]
[404482105,1770195042193,-692.0,0.00013636,2]
[404482106,1770195042202,-500.0,0.00013636,2]
[404482107,1770195042211,-820.0,0.00013636,2]
[404482108,1770195042219,-500.0,0.00013636,2]
[404482109,1770195042228,-500.0,0.00013636,2]
[404482110,1770195042237,-500.0,0.00013636,2]
[404482111,1770195042251,-614.0,0.00013636,2]
[404482112,1770195042260,-649.0,0.00013636,2]
[404482113,1770195042269,-754.0,0.00013636,2]
[404482114,1770195042278,-200.0,0.00013673,2]
[404482115,1770195042287,-200.0,0.00013684,2]
[404482116,1770195042296,-500.0,0.00013691,2]
[404482117,1770195042305,-203.03555142,0.00013691,2]
[404482118,1770195042314,-630.0,0.00013691,2]
[404482119,1770195042325,-422.0,0.00013691,2]
[404482120,1770195042334,-500.0,0.00013691,2]
[404482121,1770195042343,-1287.0,0.00013691,2]
[404482122,1770195042352,-177.59814378,0.00013691,2]
[404482123,1770195042361,-500.0,0.00013691,2]
[404482124,1770195042370,-1112.0,0.00013691,2]
[404482125,1770195042379,-709.0,0.00013691,2]
[404482126,1770195042388,-692.0,0.00013691,2]
[404482127,1770195042397,-500.0,0.00013691,2]
[404482128,1770195042406,-820.0,0.00013691,2]
[404482129,1770195042415,-604.05399687,0.00013691,2]
[404482130,1770195042425,-500.0,0.00013691,2]
[404482131,1770195042435,-500.0,0.00013691,2]
[404482132,1770195042445,-614.0,0.00013691,2]
[404482133,1770195042456,-649.0,0.00013691,2]
[404482134,1770195042467,-754.0,0.00013691,2]
[404482135,1770195042477,-547.91380347,0.00013698,2]
[404482136,1770195042486,-559.34492563,0.00013698,2]
[404482137,1770195042496,-500.0,0.00013698,2]
[404482138,1770195042505,-529.30144481,0.00013698,2]
[404482139,1770195042515,-345.38902329,0.00013698,2]
[404482140,1770195042524,-500.0,0.00013698,2]
[404482141,1770195042534,-383.98499971,0.00013698,2]
[404482142,1770195042544,-200.0,0.00013699,2]
[404482143,1770195042553,-225.92883,0.00013699,2]
[404482144,1770195042563,-225.92883,0.00013699,2]
[404482145,1770195042572,-225.92883,0.00013699,2]
[404482146,1770195042582,-225.92883,0.00013699,2]
[404482147,1770195042591,-225.92883,0.00013699,2]
[404482148,1770195042600,-225.92883,0.00013699,2]
[404482149,1770195042610,-225.92883,0.00013699,2]
[404482150,1770195042619,-225.92883,0.00013699,2]
[404482151,1770195042628,-225.92883,0.00013699,2]
[404482152,1770195042638,-225.92883,0.00013699,2]
[404482153,1770195042647,-225.92883,0.00013699,2]
[404482154,1770195042656,-225.92883,0.00013699,2]
[404482155,1770195042666,-225.92883,0.00013699,2]
[404482156,1770195042675,-225.92883,0.00013699,2]
[404482157,1770195042684,-225.92883,0.00013699,2]
[404482158,1770195042693,-225.92883,0.00013699,2]
[404482159,1770195042702,-225.92883,0.00013699,2]
[404482160,1770195042711,-225.92883,0.00013699,2]
[404482161,1770195042721,-225.92883,0.00013699,2]
[404482162,1770195042729,-225.928824,0.00013699,2]
[404482163,1770195042738,-251.931327,0.00013699,2]
[404482164,1770195042747,-251.931327,0.00013699,2]
[404482165,1770195042756,-251.931327,0.00013699,2]
[404482166,1770195042765,-251.931327,0.00013699,2]
[404482167,1770195042774,-251.931327,0.00013699,2]
[404482168,1770195042783,-251.931327,0.00013699,2]
[404482169,1770195042792,-251.931327,0.00013699,2]
[404482170,1770195042801,-251.931327,0.00013699,2]
[404482171,1770195042811,-251.931327,0.00013699,2]
[404482172,1770195042820,-251.931327,0.00013699,2]
[404482173,1770195042828,-251.931327,0.00013699,2]
[404482174,1770195042838,-251.931327,0.00013699,2]
[404482175,1770195042847,-251.931327,0.00013699,2]
[404482176,1770195042856,-251.931327,0.00013699,2]
[404482177,1770195042865,-251.931327,0.00013699,2]
[404482178,1770195042875,-251.931327,0.00013699,2]
[404482179,1770195042883,-251.931327,0.00013699,2]
[404482180,1770195042893,-251.931327,0.00013699,2]
[404482181,1770195042902,-251.931327,0.00013699,2]
[404482182,1770195042911,-251.931326,0.00013699,2]
[404482183,1770195042920,-151.0,0.00013699,2]
[404482184,1770195042930,-151.0,0.00013699,2]
[404482185,1770195042939,-151.0,0.00013699,2]
[404482186,1770195042948,-151.0,0.00013699,2]
[404482187,1770195042957,-151.0,0.00013699,2]
[404482188,1770195042966,-151.0,0.00013699,2]
[404482189,1770195042975,-151.0,0.00013699,2]
[404482190,1770195042984,-151.0,0.00013699,2]
[404482191,1770195042993,-151.0,0.00013699,2]
[404482192,1770195043002,-151.0,0.00013699,2]
[404482193,1770195043012,-151.0,0.00013699,2]
[404482194,1770195043024,-151.0,0.00013699,2]
[404482195,1770195043034,-212.739513,0.00013699,2]
[404482196,1770195043044,-151.0,0.00013699,2]
[404482197,1770195043055,-500.0,0.00013699,2]
[404482198,1770195043064,-151.0,0.00013699,2]
[404482199,1770195043073,-151.0,0.00013699,2]
[404482200,1770195043082,-151.0,0.00013699,2]
[404482201,1770195043090,-151.0,0.00013699,2]
[404482202,1770195043099,-151.0,0.00013699,2]
[404482203,1770195043108,-2100.55,0.000137,2]
[404482204,1770195043117,-10999.37,0.000137,2]
[404482205,1770195043126,-500.0,0.00013745,2]
[404482206,1770195043135,-630.0,0.00013745,2]
[404482207,1770195043144,-422.0,0.00013745,2]
[404482208,1770195043153,-500.0,0.00013745,2]
[404482209,1770195043163,-1287.0,0.00013745,2]
[404482210,1770195043173,-500.0,0.00013745,2]
[404482211,1770195043183,-1112.0,0.00013745,2]
[404482212,1770195043192,-709.0,0.00013745,2]
[404482213,1770195043203,-692.0,0.00013745,2]
[404482214,1770195043213,-500.0,0.00013745,2]
[404482215,1770195043233,-820.0,0.00013745,2]
[404482216,1770195043243,-500.0,0.00013745,2]
[404482217,1770195043256,-500.0,0.00013745,2]
[404482218,1770195043266,-614.0,0.00013745,2]
[404482219,1770195043275,-649.0,0.00013745,2]
[404482220,1770195043284,-754.0,0.00013745,2]
[404482221,1770195043296,-200.0,0.00013748,2]
[404482222,1770195043306,-4093.62846889,0.00013776,2]
[404482223,1770195043317,-531.52731537,0.000138,2]
[404482224,1770195043328,-630.0,0.000138,2]
[404482225,1770195043337,-422.0,0.000138,2]
[404482226,1770195043347,-500.0,0.000138,2]
[404482227,1770195043356,-1287.0,0.000138,2]
[404482228,1770195043365,-500.0,0.000138,2]
[404482229,1770195043374,-1112.0,0.000138,2]
[404482230,1770195043383,-709.0,0.000138,2]
[404482231,1770195043393,-692.0,0.000138,2]
[404482232,1770195043403,-500.0,0.000138,2]
[404482233,1770195043412,-820.0,0.000138,2]
[404482234,1770195043422,-500.0,0.000138,2]
[404482235,1770195043432,-500.0,0.000138,2]
[404482236,1770195043442,-614.0,0.000138,2]
[404482237,1770195043451,-649.0,0.000138,2]
[404482238,1770195043460,-754.0,0.000138,2]
[404482239,1770195043470,-630.0,0.00013855,2]
[404482240,1770195043479,-422.0,0.00013855,2]
[404482241,1770195043488,-500.0,0.00013855,2]
[404482242,1770195043498,-1287.0,0.00013855,2]
[404482243,1770195043508,-500.0,0.00013855,2]
[404482244,1770195043517,-1112.0,0.00013855,2]
[404482245,1770195043527,-709.0,0.00013855,2]
[404482246,1770195043536,-692.0,0.00013855,2]
[404482247,1770195043545,-500.0,0.00013855,2]
[404482248,1770195043556,-820.0,0.00013855,2]
[404482249,1770195043566,-500.0,0.00013855,2]
[404482250,1770195043575,-500.0,0.00013855,2]
[404482251,1770195043584,-614.0,0.00013855,2]
[404482252,1770195043594,-649.0,0.00013855,2]
[404482253,1770195043603,-754.0,0.00013855,2]
[404482254,1770195043612,-175.34,0.00013855,2]
[404482255,1770195043621,-500.0,0.00013855,2]
[404482256,1770195043630,-486.0,0.00013859,2]
[404482257,1770195043639,-166.66,0.00013864,2]
[404482258,1770195043648,-630.0,0.0001391,2]
[404482259,1770195043658,-422.0,0.0001391,2]
[404482260,1770195043667,-500.0,0.0001391,2]
[404482261,1770195043677,-1287.0,0.0001391,2]
[404482262,1770195043687,-500.0,0.0001391,2]
[404482264,1770195043695,-1112.0,0.0001391,2]
[404482265,1770195043704,-709.0,0.0001391,2]
[404482267,1770195043713,-692.0,0.0001391,2]
[404482269,1770195043722,-500.0,0.0001391,2]
[404482270,1770195043731,-820.0,0.0001391,2]
[404482272,1770195043740,-500.0,0.0001391,2]
[404482273,1770195043749,-500.0,0.0001391,2]
[404482274,1770195043758,-614.0,0.0001391,2]
[404482276,1770195043767,-649.0,0.0001391,2]
[404482277,1770195043776,-754.0,0.0001391,2]
[404482278,1770195043785,-630.0,0.00013965,2]
[404482279,1770195043794,-422.0,0.00013965,2]
[404482280,1770195043803,-500.0,0.00013965,2]
[404482281,1770195043813,-1287.0,0.00013965,2]
[404482282,1770195043822,-500.0,0.00013965,2]
[404482284,1770195043832,-1112.0,0.00013965,2]
[404482285,1770195043842,-709.0,0.00013965,2]
[404482287,1770195043852,-692.0,0.00013965,2]
[404482288,1770195043862,-500.25270898,0.00013965,2]
[404482290,1770195043871,-820.0,0.00013965,2]
[404482291,1770195043880,-500.0,0.00013965,2]
[404482292,1770195043889,-500.0,0.00013965,2]
[404482294,1770195043898,-614.0,0.00013965,2]
[404482295,1770195043907,-649.0,0.00013965,2]
[404482297,1770195043916,-754.0,0.00013965,2]
[404482298,1770195043925,-1103.0,0.00013965,2]
[404482300,1770195043935,-237.3935,0.00013982,2]
[404482301,1770195043943,-200.0,0.00013994,2]
[404482302,1770195043953,-491.06378942,0.00014003,2]
[404482304,1770195043962,-166.66,0.00014014,2]
[404482305,1770195043971,-630.0,0.00014019,2]
[404482307,1770195043980,-422.0,0.00014019,2]
[404482308,1770195043989,-500.0,0.00014019,2]
[404482309,1770195043998,-1287.0,0.00014019,2]
[404482311,1770195044008,-500.0,0.00014019,2]
[404482312,1770195044017,-1112.0,0.00014019,2]
[404482314,1770195044027,-709.0,0.00014019,2]
[404482315,1770195044037,-692.0,0.00014019,2]
[404482316,1770195044047,-820.0,0.00014019,2]
[404482317,1770195044056,-500.0,0.00014019,2]
[404482318,1770195044066,-175.2931009,0.00014019,2]
[404482320,1770195044074,-614.0,0.00014019,2]
[404482321,1770195044083,-649.0,0.00014019,2]
[404482322,1770195044093,-754.0,0.00014019,2]
[404482324,1770195044102,-9922.83593185,0.00014023,2]
[404482325,1770195044111,-500.0,0.00014029,2]
[404482327,1770195044120,-630.0,0.00014074,2]
[404482328,1770195044130,-422.0,0.00014074,2]
[404482329,1770195044139,-500.0,0.00014074,2]
[404482331,1770195044148,-1287.0,0.00014074,2]
[404482332,1770195044158,-500.0,0.00014074,2]
[404482334,1770195044167,-1112.0,0.00014074,2]
[404482335,1770195044176,-709.0,0.00014074,2]
[404482337,1770195044185,-692.0,0.00014074,2]
[404482338,1770195044195,-820.0,0.00014074,2]
[404482339,1770195044204,-246.89022842,0.00014074,2]
[404482341,1770195044213,-614.0,0.00014074,2]
[404482342,1770195044223,-649.0,0.00014074,2]
[404482343,1770195044233,-754.0,0.00014074,2]
[404482344,1770195044244,-1777.88263295,0.00014112,2]
[404482345,1770195044256,-605.59208121,0.00014113,2]
[404482346,1770195044266,-200.0,0.00014113,2]
[404482347,1770195044277,-195.12483545,0.00014113,2]
[404482348,1770195044287,-500.0,0.00014113,2]
[404482349,1770195044296,-322.6107,0.00014113,2]
[404482350,1770195044305,-500.0,0.00014113,2]
[404482351,1770195044315,-209.40437684,0.00014113,2]
[404482352,1770195044324,-500.0,0.00014113,2]
[404482353,1770195044333,-500.0,0.00014113,2]
[404482354,1770195044343,-500.0,0.00014113,2]
[404482355,1770195044352,-500.0,0.00014113,2]
[404482356,1770195044362,-500.0,0.00014113,2]
[404482357,1770195044371,-174.61919141,0.00014113,2]
[404482358,1770195044381,-500.0,0.00014113,2]
[404482359,1770195044390,-500.0,0.00014113,2]
[404482360,1770195044399,-500.0,0.00014113,2]
[404482361,1770195044408,-500.0,0.00014113,2]
[404482362,1770195044417,-151.0,0.00014113,2]
[404482363,1770195044427,-273.46262284,0.00014113,2]
[404482364,1770195044436,-1428.38747117,0.00014113,2]
[404482365,1770195044445,-209.40437684,0.00014113,2]
[404482366,1770195044454,-630.0,0.00014129,2]
[404482367,1770195044463,-422.0,0.00014129,2]
[404482368,1770195044472,-315.89038343,0.00014129,2]
[404482369,1770195044482,-1287.0,0.00014129,2]
[404482370,1770195044491,-500.0,0.00014129,2]
[404482371,1770195044500,-1112.0,0.00014129,2]
[404482372,1770195044509,-709.0,0.00014129,2]
[404482373,1770195044519,-692.0,0.00014129,2]
[404482374,1770195044528,-820.0,0.00014129,2]
[404482375,1770195044538,-614.0,0.00014129,2]
[404482376,1770195044547,-649.0,0.00014129,2]
[404482377,1770195044556,-754.0,0.00014129,2]
[404482378,1770195044565,-500.0,0.00014129,2]
[404482379,1770195044575,-175.34,0.00014129,2]
[404482380,1770195044584,-500.0,0.00014129,2]
[404482381,1770195044593,-166.66,0.00014133,2]
[404482382,1770195044602,-217.15233878,0.00014168,2]
[404482383,1770195044612,-630.0,0.00014184,2]
[404482384,1770195044620,-422.0,0.00014184,2]
[404482385,1770195044629,-1287.0,0.00014184,2]
[404482386,1770195044638,-500.0,0.00014184,2]
[404482387,1770195044647,-1112.0,0.00014184,2]
[404482388,1770195044657,-709.0,0.00014184,2]
[404482389,1770195044666,-692.0,0.00014184,2]
[404482390,1770195044676,-820.0,0.00014184,2]
[404482391,1770195044685,-614.0,0.00014184,2]
[404482392,1770195044694,-649.0,0.00014184,2]
[404482393,1770195044704,-754.0,0.00014184,2]
[404482394,1770195044713,-200.0,0.00014209,2]
[404482395,1770195044723,-225.18697532,0.00014223,2]
[404482396,1770195044733,-630.0,0.00014239,2]
[404482397,1770195044744,-422.0,0.00014239,2]
[404482398,1770195044754,-1287.0,0.00014239,2]
[404482399,1770195044766,-500.0,0.00014239,2]
[404482400,1770195044775,-1112.0,0.00014239,2]
[404482401,1770195044785,-709.0,0.00014239,2]
[404482402,1770195044795,-692.0,0.00014239,2]
[404482403,1770195044804,-820.0,0.00014239,2]
[404482404,1770195044812,-614.0,0.00014239,2]
[404482405,1770195044821,-649.0,0.00014239,2]
[404482406,1770195044831,-754.0,0.00014239,2]
[404482407,1770195044843,-500.0,0.0001426,2]
[404482408,1770195044853,-500.0,0.0001426,2]
[404482409,1770195044863,-500.0,0.0001426,2]
[404482410,1770195044874,-500.0,0.0001426,2]
[404482411,1770195044883,-500.0,0.0001426,2]
[404482412,1770195044893,-500.0,0.0001426,2]
[404482413,1770195044902,-611.94419717,0.0001426,2]
[404482414,1770195044911,-501.79170856,0.0001426,2]
[404482415,1770195044921,-151.0,0.00014264,2]